Cogmind - Beta 15 @@@ ROGUE MODE // 2025.10.06 @ 22:34:31 Player: DietSnapple Result: Destroyed by S-27 Virus with Autogun Performance ------------- Evolutions (5) 2500 Regions Visited (16) 3200 Robots Destroyed (49) 245 Value Destroyed (1349) 1349 Prototype IDs (10) 200 Alien Tech Used (0) 0 Bonus (600) 600 TOTAL SCORE: 8094 Bonus ------- Aligned with FarCom 300 Met Data Miner 300 Cogmind --------- Core Integrity 0/1000 Matter 121/300 Energy 100/100 System Corruption 0% Temperature Cool (0) Movement Core (50) Location -5/Upper Caves Parts ------- > --- POWER (1) -------- (None) > --- PROPULSION (6) --- (None) > --- UTILITY (8) ------ (None) > --- WEAPON (2) ------- (None) > --- INVENTORY (5) ---- Light Fission Core Hardened Light Armor Plating Wave Gun Peak State ------------ > --- POWER ------------ Light Fission Core > --- PROPULSION ------- Xenon Bombardment Thruster Xenon Bombardment Thruster Improved Cesium-ion Thruster Cooled Cesium-ion Thruster > --- UTILITY ---------- Advanced Weight Redist. System Improved Signal Interpreter Improved Reaction Control System Hacking Suite Hacking Suite Hacking Suite System Shield System Shield > --- WEAPON ----------- Greatsword > --- INVENTORY -------- Micro Nuclear Core Antimatter Reactor Gravmag System Lightning Gun Heavy Rocket Launcher [Rating: 60] Favorites ----------- Power Light Ion Engine Engine Light Ion Engine Power Core Micro Nuclear Core Propulsion Improved Treads Treads Improved Treads Leg VSS Leg Wheel Wheel Hover Unit Improved Hover Unit Flight Unit Improved Cesium-ion Thruster Utility Hacking Suite Device Advanced Weight Redist. System Storage Small Storage Unit Processor Improved Signal Interpreter Hackware Hacking Suite Protection Hardened Light Armor Plating Weapon Light Assault Rifle Energy Gun Small Laser Ballistic Gun Light Assault Rifle Ballistic Cannon Light Cannon Launcher Heavy Rocket Launcher Special Weapon Mining Laser Slashing Weapon Greatsword Build | -11 -10 -10 -10 -9 -8 -7 -7 -7 -7 -7 -6 -6 -6 -6 -5 -5 ------- Run | Yrd Mat Min Exi Min Mat Fac Was Fac Low Dat Pro Fac Ext Cet Fac Upp Slots Evolved 10 | . . . . . 4 2 . . . . . 2 . . 2 . Power . | . . . . . . . . . . . . . . . . . Propulsion 4 | . . . . . 1 1 . . . . . . . . 2 . Utility 6 | . . . . . 3 1 . . . . . 2 . . . . Weapon . | . . . . . . . . . . . . . . . . . Parts Attached 88 | 6 6 4 . . 20 24 . 4 1 . 1 14 1 . 6 1 Power 9 | 1 1 1 . . 1 2 . 1 . . . 2 . . . . Engine 6 | 1 1 1 . . . 2 . . . . . 1 . . . . Core 3 | . . . . . 1 . . 1 . . . 1 . . . . Reactor . | . . . . . . . . . . . . . . . . . Propulsion 27 | 2 2 2 . . 3 9 . 1 1 . . 3 1 . 2 1 Treads 5 | . 2 2 . . 1 . . . . . . . . . . . Leg 1 | . . . . . 1 . . . . . . . . . . . Wheel 2 | 2 . . . . . . . . . . . . . . . . Hover 12 | . . . . . 1 8 . . . . . . . . 2 1 Flight 7 | . . . . . . 1 . 1 1 . . 3 1 . . . Utility 32 | 1 2 1 . . 10 6 . . . . . 9 . . 3 . Device 11 | . . . . . 4 1 . . . . . 4 . . 2 . Storage 1 | 1 . . . . . . . . . . . . . . . . Processor 5 | . . . . . 1 3 . . . . . 1 . . . . Hackware 8 | . 1 . . . 1 2 . . . . . 4 . . . . Protection 7 | . 1 1 . . 4 . . . . . . . . . 1 . Artifact . | . . . . . . . . . . . . . . . . . Weapon 20 | 2 1 . . . 6 7 . 2 . . 1 . . . 1 . Energy Gun 9 | 1 . . . . 3 4 . . . . . . . . 1 . Energy Cannon . | . . . . . . . . . . . . . . . . . Ballistic Gun 2 | 1 . . . . 1 . . . . . . . . . . . Ballistic Cannon 1 | . 1 . . . . . . . . . . . . . . . Launcher 3 | . . . . . 1 2 . . . . . . . . . . Special Weapon 1 | . . . . . 1 . . . . . . . . . . . Impact Weapon . | . . . . . . . . . . . . . . . . . Slashing Weapon 4 | . . . . . . 1 . 2 . . 1 . . . . . Piercing Weapon . | . . . . . . . . . . . . . . . . . Special Melee Weapon . | . . . . . . . . . . . . . . . . . Unidentified Prototypes 2 | . . . . . 1 1 . . . . . . . . . . Parts Lost 43 | . . 1 . . 15 6 . 4 . . . 1 13 . 3 . Power 2 | . . . . . 1 . . . . . . . 1 . . . Propulsion 12 | . . 1 . . 3 1 . 1 . . . . 6 . . . Utility 19 | . . . . . 5 3 . 2 . . . 1 5 . 3 . Weapon 10 | . . . . . 6 2 . 1 . . . . 1 . . . Highest Loss Streak 5 | . . 1 . . 4 3 . 4 . . . 1 5 . 3 . To Critical Strikes 1 | . . . . . 1 . . . . . . . . . . . Average Backups 4 | 1 4 4 5 5 3 4 5 4 4 4 4 4 1 1 1 3 Power . | . . . . . . 1 1 1 1 1 1 1 1 1 1 1 Propulsion . | 1 1 . . . . 2 2 1 1 1 1 1 . . . . Utility 1 | . 1 2 3 4 2 1 1 . . . . . . . . 1 Weapon 1 | . . 1 1 1 1 . 1 1 2 2 2 1 . . . 1 Tool/Special . | . . . . . . . . . . . . . . . . . Unused Backups 9 | . 4 1 1 . . 2 . . . . . 1 . . . . Power 2 | . 1 . . . . . . . . . . 1 . . . . Propulsion 4 | . 2 . . . . 2 . . . . . . . . . . Utility 1 | . . 1 . . . . . . . . . . . . . . Weapon 2 | . 1 . 1 . . . . . . . . . . . . . Tool/Special . | . . . . . . . . . . . . . . . . . Average Slot Usage (%) 79 | . 98 99 100 100 75 77 100 56 50 53 60 78 59 20 5 6 Engine 7 | . 14 14 14 14 3 6 7 2 . . . . 4 . . . Core 1 | . . . . . 3 . . 4 7 7 7 5 . . . . Treads 13 | . 25 27 28 28 12 . . . . . . . . . . . Hover 3 | . . . . . . 26 30 2 . . . . . . . 1 Flight 3 | . . . . . . . . 7 12 15 15 17 17 . . . Device 1 | . . . . . 4 1 7 1 . . . 6 4 . 1 4 Processor 5 | . . . . . 1 11 23 23 23 23 23 17 6 6 . . Hackware 11 | . 7 14 14 14 16 6 7 7 7 7 7 21 24 13 1 . Protection 9 | . 12 14 14 14 18 7 7 1 . . . . . . . . Energy Gun 2 | . 8 . . . 3 9 . . . . . . . . . . Ballistic Gun 7 | . 14 14 14 14 7 . . . . . . . . . . . Ballistic Cannon 5 | . 5 14 14 14 2 . . . . . . . . . . . Peak Build Rating 60 | 6 12 13 13 13 28 41 42 42 26 26 34 60 60 9 12 9 Average Rating 19 | 3 10 12 12 13 17 26 41 26 25 26 33 50 34 9 3 5 On Entrance 20 | . 6 12 12 13 13 14 41 42 24 26 26 34 60 9 9 5 Naked Turns 154 | . . . . . . . . . . . . . . . 128 26 Heaviest Build 20 | 10 15 12 12 12 18 20 20 20 6 6 11 19 19 . 3 3 Greatest Support 46 | 20 46 46 46 46 46 41 41 41 11 11 11 33 33 3 28 9 Greatest Overweight (x) 4 | . 3 . . . 4 3 . 1 . . . 1 . . . . Average Overweight (x) . | . . . . . . . . . . . . . . . . . Largest Inventory Capacity 8 | 8 8 5 5 5 5 5 5 5 5 5 5 5 5 5 5 5 Average Capacity 5 | 5 6 5 5 5 5 5 5 5 5 5 5 5 5 5 5 5 Most Carried 8 | 4 8 5 5 5 5 5 5 5 5 4 4 5 3 1 3 3 Average Carried 4 | 1 5 4 4 5 3 4 5 4 4 4 4 4 1 1 1 3 Final Capacity 8 | 8 5 5 5 5 5 5 5 5 5 5 5 5 5 5 5 5 Final Carried 5 | 4 4 5 5 5 3 5 5 5 4 4 4 3 1 1 3 3 Class Distribution -------------------- 70% | Mutant 11% | Hacker-Mutant 6% | Hacker-Sprinter 4% | Sprinter Dominant Class ---------------- Mutant | -10/Materials Mutant | -10/Mines Mutant | -10/Exiles Mutant | -9/Mines Hacker-Mutant | -8/Materials Mutant | -7/Factory Mutant | -7/Waste Mutant | -7/Factory Mutant | -7/Lower Caves Sprinter | -7/Data Miner Sprinter | -6/Proximity Caves Hacker-Sprinter | -6/Factory Hacker-Sprinter | -6/Extension Hacker-Mutant | -6/Cetus Mutant | -5/Factory Mutant | -5/Upper Caves Resources | -11 -10 -10 -10 -9 -8 -7 -7 -7 -7 -7 -6 -6 -6 -6 -5 -5 ----------- Run | Yrd Mat Min Exi Min Mat Fac Was Fac Low Dat Pro Fac Ext Cet Fac Upp Matter Collected 1243 | 180 132 188 . . 280 180 . . 54 . 60 67 . . . 102 Remotely . | . . . . . . . . . . . . . . . . . Salvage Created 1320 | . 368 73 . . 508 310 . . . . . 61 . . . . Parts 99 | . 37 12 . . 27 18 . . . . . 5 . . . . Haulers Intercepted 1 | . 1 . . . . . . . . . . . . . . . Recyclers Shooed 2 | . . . . . 2 . . . . . . . . . . . Parts Field Recycled . | . . . . . . . . . . . . . . . . . Retrieved Matter . | . . . . . . . . . . . . . . . . . Parts Self-Destructed . | . . . . . . . . . . . . . . . . . Prevented . | . . . . . . . . . . . . . . . . . Kills | -11 -10 -10 -10 -9 -8 -7 -7 -7 -7 -7 -6 -6 -6 -6 -5 -5 ------- Run | Yrd Mat Min Exi Min Mat Fac Was Fac Low Dat Pro Fac Ext Cet Fac Upp Combat Hostiles Destroyed 37 | . 12 8 . . 12 5 . . . . . . . . . . Melee 3 | . . . . . . 3 . . . . . . . . . . Guns 21 | . 11 1 . . 7 2 . . . . . . . . . . Cannons 9 | . 1 7 . . 1 . . . . . . . . . . . AOE 4 | . . . . . 4 . . . . . . . . . . . Classes Destroyed 12 | . 5 . . . 2 4 . . . . . 1 . . . . Worker 2 | . 1 . . . 1 . . . . . . . . . . . Builder 1 | . . . . . . 1 . . . . . . . . . . Tunneler 1 | . . . . . . 1 . . . . . . . . . . Hauler 1 | . 1 . . . . . . . . . . . . . . . Mechanic 1 | . . . . . . . . . . . . 1 . . . . Operator 6 | . 1 . . . 1 3 . . . . . 1 . . . . Swarmer 15 | . 7 8 . . . . . . . . . . . . . . Grunt 14 | . 5 . . . 6 3 . . . . . . . . . . Sentry 2 | . . . . . 2 . . . . . . . . . . . Specialist 4 | . . . . . 4 . . . . . . . . . . . Hunter 1 | . . . . . . 1 . . . . . . . . . . Programmer 1 | . . . . . . 1 . . . . . . . . . . Best Kill Streak 4 | . 4 3 . . 4 2 . . . . . 1 . . . . Combat Bots Only 4 | . 3 3 . . 4 2 . . . . . . . . . . Max Kills in Single Turn 1 | . 1 1 . . 1 1 . . . . . 1 . . . . Gunslinging . | . . . . . . . . . . . . . . . . . Exploded 1 | . . . . . 1 . . . . . . . . . . . Melee 1 | . . . . . . 1 . . . . . . . . . . Uniques/NPCs Destroyed . | . . . . . . . . . . . . . . . . . Combat | -11 -10 -10 -10 -9 -8 -7 -7 -7 -7 -7 -6 -6 -6 -6 -5 -5 -------- Run | Yrd Mat Min Exi Min Mat Fac Was Fac Low Dat Pro Fac Ext Cet Fac Upp Hostile Shots Fired 645 | . 85 42 . . 183 40 . 17 . . 4 24 158 5 74 13 Missed 279 | . 29 12 . . 54 23 . 13 . . 1 16 90 4 30 7 Hits 366 | . 56 30 . . 129 17 . 4 . . 3 8 68 1 44 6 Projectile 366 | . 56 30 . . 129 17 . 4 . . 3 8 68 1 44 6 AOE 1 | . . . . . . . . . . . . . . . 1 . Critical Strikes 4 | . . . . . 3 . . . . . . . . . 1 . Damage Taken 5757 | . 521 241 . . 2168 404 . 310 . . 71 119 814 29 996 84 Core 2200 | . 33 24 . . 535 111 . 73 . . 27 12 353 29 919 84 Absorbed by Shields 39 | . . . . . . . . . . . . . 39 . . . Redirected to Shielding 56 | . . . . . 21 17 . 18 . . . . . . . . Core Remaining (%) 60 | 100 . . . 77 2 . . . . . 69 . . 53 . . Volleys Fired 156 | . 54 16 . . 70 16 . . . . . . . . . . Largest 2 | . 2 2 . . 2 2 . . . . . . . . . . Hottest 126 | . 60 50 . . 126 100 . . . . . . . . . . Shots Fired 270 | . 108 32 . . 107 23 . . . . . . . . . . Gun 212 | . 100 16 . . 81 15 . . . . . . . . . . Cannon 40 | . 8 16 . . 16 . . . . . . . . . . . Launcher 11 | . . . . . 7 4 . . . . . . . . . . Special 7 | . . . . . 3 4 . . . . . . . . . . Kinetic 175 | . 62 32 . . 81 . . . . . . . . . . . Thermal 74 | . 46 . . . 19 9 . . . . . . . . . . Explosive 11 | . . . . . 7 4 . . . . . . . . . . Electromagnetic 10 | . . . . . . 10 . . . . . . . . . . Robot Hit Streak 13 | . 8 5 . . 13 10 . . . . . . . . . . Robot Miss Streak 5 | . 4 5 . . 3 3 . . . . . . . . . . Penetration Max . | . . . . . . . . . . . . . . . . . Secondary Targets 2 | . 2 . . . . . . . . . . . . . . . Max Gunslinging Chain 1 | . 1 . . . . . . . . . . . . . . . Shots Hit Robots 176 | . 59 18 . . 71 25 . . . . . 3 . . . . Core Hits 89 | . 26 10 . . 37 16 . . . . . . . . . . Critical Kills 1 | . . . . . 1 . . . . . . . . . . . Critical Parts Destroyed . | . . . . . . . . . . . . . . . . . Critical Strikes 2 | . . . . . 1 1 . . . . . . . . . . Destroy 1 | . . . . . 1 . . . . . . . . . . . Sever 1 | . . . . . . 1 . . . . . . . . . . Melee Attacks 30 | . . . . . . 11 . . . . . 19 . . . . Impact . | . . . . . . . . . . . . . . . . . Slashing 30 | . . . . . . 11 . . . . . 19 . . . . Piercing . | . . . . . . . . . . . . . . . . . Sneak Attacks 2 | . . . . . . . . . . . . 2 . . . . Combat Hostiles . | . . . . . . . . . . . . . . . . . Follow-up Attacks . | . . . . . . . . . . . . . . . . . Damage Inflicted 3404 | . 682 247 . . 1380 725 . . . . . 344 . . 26 . Guns 1506 | . 558 55 . . 643 250 . . . . . . . . . . Cannons 487 | . 124 192 . . 171 . . . . . . . . . . . Explosions 720 | . . . . . 550 170 . . . . . . . . . . Melee 625 | . . . . . . 281 . . . . . 344 . . . . Ramming 42 | . . . . . 16 . . . . . . . . . 26 . Kinetic 1249 | . 340 247 . . 662 . . . . . . . . . . . Thermal 638 | . 342 . . . 152 144 . . . . . . . . . . Explosive 699 | . . . . . 550 149 . . . . . . . . . . Electromagnetic 151 | . . . . . . 151 . . . . . . . . . . Impact . | . . . . . . . . . . . . . . . . . Slashing 625 | . . . . . . 281 . . . . . 344 . . . . Piercing . | . . . . . . . . . . . . . . . . . Highest Corruption 1 | . . . . . . 1 1 1 1 1 1 . 1 1 . . Average Corruption 1 | . . . . . . 1 1 1 1 1 1 . 1 1 . . Corruption Purged . | . . . . . . . . . . . . . . . . . Corruption Blocked . | . . . . . . . . . . . . . . . . . Effects 10 | . . . . . . 3 1 1 . 1 2 . 2 . . . Message Errors 5 | . . . . . . 2 . 1 . . 1 . 1 . . . Matter Fused 1 | . . . . . . . . . . . . . 1 . . . Heat Flow Errors 1 | . . . . . . 1 . . . . . . . . . . Energy Discharges 2 | . . . . . . . . . . 1 1 . . . . . Data Loss (minor) 1 | . . . . . . . 1 . . . . . . . . . Overload Shots . | . . . . . . . . . . . . . . . . . Overflow Damage 254 | . . . . . . 30 . . . . . 224 . . . . Projectiles . | . . . . . . . . . . . . . . . . . Explosions 30 | . . . . . . 30 . . . . . . . . . . Melee 224 | . . . . . . . . . . . . 224 . . . . Knockbacks 7 | . 3 2 . . 1 . . . . . . . . . 1 . Impact 1 | . . . . . . . . . . . . . . . 1 . Kinetic 6 | . 3 2 . . 1 . . . . . . . . . . . Secondary . | . . . . . . . . . . . . . . . . . Self-Inflicted Damage 12 | . . . . . . . . . . . . . . . 12 . Shots . | . . . . . . . . . . . . . . . . . Rammed 5 | . . . . . 1 . . . . . . . . . 4 . Targets Rammed 8 | . . . . . 4 . . . . . . . . . 4 . Kicked 3 | . . . . . 3 . . . . . . . . . . . Crushed . | . . . . . . . . . . . . . . . . . Highest Temperature 462 | . 259 60 . . 462 129 . . . . . . 11 . . . Average Temperature 74 | . 73 26 . . 108 33 . . . . . . 6 . . . Received Heat Transfer 1296 | . 126 . . . 522 54 . 36 . . 18 24 180 9 327 . Effects 5 | . 1 . . . 4 . . . . . . . . . . . Shutdowns 1 | . . . . . 1 . . . . . . . . . . . Energy Bleed 2 | . 1 . . . 1 . . . . . . . . . . . Interference 2 | . . . . . 2 . . . . . . . . . . . Siege Activations . | . . . . . . . . . . . . . . . . . Martial Activations . | . . . . . . . . . . . . . . . . . Shielding Activations . | . . . . . . . . . . . . . . . . . Robots Disrupted . | . . . . . . . . . . . . . . . . . Combat Hostiles . | . . . . . . . . . . . . . . . . . Robots Corrupted . | . . . . . . . . . . . . . . . . . Combat Hostiles . | . . . . . . . . . . . . . . . . . Parts Fried 2 | . . . . . . 2 . . . . . . . . . . Impact Corruptions . | . . . . . . . . . . . . . . . . . Robots Melted . | . . . . . . . . . . . . . . . . . Combat Hostiles . | . . . . . . . . . . . . . . . . . Parts Melted 2 | . . . . . . 2 . . . . . . . . . . Heat Transferred 1380 | . 775 . . . 370 235 . . . . . . . . . . Parts Sabotaged . | . . . . . . . . . . . . . . . . . Parts Stolen . | . . . . . . . . . . . . . . . . . Parts Stripped . | . . . . . . . . . . . . . . . . . Power Chain Reactions 1 | . . . . . . 1 . . . . . . . . . . Alert | -11 -10 -10 -10 -9 -8 -7 -7 -7 -7 -7 -6 -6 -6 -6 -5 -5 ------- Run | Yrd Mat Min Exi Min Mat Fac Was Fac Low Dat Pro Fac Ext Cet Fac Upp Maximum Alert Level 1 | . . . . . 1 . . . . . . . . . . . Low Security (%) 99 | 100 100 100 . 100 99 100 100 100 . . . 100 100 100 100 . Level 1 . | . . . . . . . . . . . . . . . . . Level 2 . | . . . . . . . . . . . . . . . . . Level 3 . | . . . . . . . . . . . . . . . . . Level 4 . | . . . . . . . . . . . . . . . . . Level 5 . | . . . . . . . . . . . . . . . . . High Security . | . . . . . . . . . . . . . . . . . Max Security . | . . . . . . . . . . . . . . . . . Peak Influence 196 | . 130 66 . . 195 122 42 70 . . . 196 117 44 140 . Initial 196 | . . 6 . . . 74 42 8 . . . 196 93 44 18 . Average 39 | . 49 10 . . 39 20 28 11 . . . 131 60 38 83 . Influence Increases 2415 | . 326 190 . . 506 267 . 124 . . 105 442 275 . 180 . Destroy 0b10 Robot/C 760 | . 240 160 . . 240 100 . . . . . . 20 . . . Destroy 0b10 Robot/NC 55 | . 15 . . . 10 20 . . . . . 10 . . . . Destroy Leader 192 | . 62 30 . . 70 30 . . . . . . . . . . Successful Hack 67 | . 9 . . . 7 3 . 4 . . . 14 30 . . . Disable Machine 30 | . . . . . 30 . . . . . . . . . . . Destroy Structure 81 | . . . . . 44 24 . . . . . 13 . . . . Advance Influence 150 | . . . . . . . . . . . . 150 . . . . Partial Spotted 45 | . . . . . . . . . . . . 30 15 . . . Lose Combat Pursuer 1035 | . . . . . 105 90 . 120 . . 105 225 210 . 180 . Influence Decreases 2415 | . 308 208 . . 341 310 110 66 36 34 30 325 387 46 144 70 Entered New Map 453 | . . 12 . . . 91 80 4 26 34 . 29 99 36 16 26 Time Decay 1620 | . 308 186 . . 224 180 30 62 10 . 30 286 130 10 120 44 Lost Part 302 | . . 10 . . 117 39 . . . . . 10 118 . 8 . Lost Ally 40 | . . . . . . . . . . . . . 40 . . . Squads Dispatched 30 | . 4 . . . 7 3 . 3 . . 1 7 2 . 3 . Investigation 12 | . 4 . . . 1 2 . 1 . . . 2 2 . . . Extermination 5 | . . . . . . 1 . . . . . 3 . . 1 . Reinforcement 12 | . . . . . 6 . . 2 . . . 2 . . 2 . Assault 1 | . . . . . . . . . . . 1 . . . . . Garrison . | . . . . . . . . . . . . . . . . . Intercept . | . . . . . . . . . . . . . . . . . Searches Triggered . | . . . . . . . . . . . . . . . . . Data Miner Redirects 3 | . . . . . . . . . . . . 1 2 . . . Construction Impeded 2 | . . . . . 1 . . . . . . . . . 1 . Haulers Reinforced . | . . . . . . . . . . . . . . . . . Active Scanning Responses . | . . . . . . . . . . . . . . . . . Cargo Convoy Interrupts . | . . . . . . . . . . . . . . . . . Stealth | -11 -10 -10 -10 -9 -8 -7 -7 -7 -7 -7 -6 -6 -6 -6 -5 -5 --------- Run | Yrd Mat Min Exi Min Mat Fac Was Fac Low Dat Pro Fac Ext Cet Fac Upp Distress Signals 8 | . 2 . . . . 2 . . . . 2 . 1 1 . . Communications Jammed . | . . . . . . . . . . . . . . . . . Distress Signals . | . . . . . . . . . . . . . . . . . Times Spotted 167 | . 27 8 . . 27 17 . 10 . . 8 21 22 5 18 4 Peak Tracking Total 14 | . 4 3 . . 6 4 . 5 . . 8 9 14 5 11 4 Tactical Retreats 28 | . . . . . 5 3 . 2 . . 3 6 5 . 4 . Traps | -11 -10 -10 -10 -9 -8 -7 -7 -7 -7 -7 -6 -6 -6 -6 -5 -5 ------- Run | Yrd Mat Min Exi Min Mat Fac Was Fac Low Dat Pro Fac Ext Cet Fac Upp Traps Triggered 22 | . . . . . 1 7 . 2 . . . 2 8 . 2 . Indirectly . | . . . . . . . . . . . . . . . . . Trap Hack Attempts . | . . . . . . . . . . . . . . . . . Triggered . | . . . . . . . . . . . . . . . . . Disarmed . | . . . . . . . . . . . . . . . . . Reprogrammed . | . . . . . . . . . . . . . . . . . Reused . | . . . . . . . . . . . . . . . . . Traps Extracted . | . . . . . . . . . . . . . . . . . Installed . | . . . . . . . . . . . . . . . . . Triggered . | . . . . . . . . . . . . . . . . . Machines | -11 -10 -10 -10 -9 -8 -7 -7 -7 -7 -7 -6 -6 -6 -6 -5 -5 ---------- Run | Yrd Mat Min Exi Min Mat Fac Was Fac Low Dat Pro Fac Ext Cet Fac Upp Machines Disabled 3 | . 1 . . . 2 . . . . . . . . . . . Max in Single Turn 2 | . 1 . . . 2 . . . . . . . . . . . Machines Repaired . | . . . . . . . . . . . . . . . . . Machines Dismantled . | . . . . . . . . . . . . . . . . . Machines Sabotaged . | . . . . . . . . . . . . . . . . . Overloaded Fab Kills . | . . . . . . . . . . . . . . . . . Hacking | -11 -10 -10 -10 -9 -8 -7 -7 -7 -7 -7 -6 -6 -6 -6 -5 -5 --------- Run | Yrd Mat Min Exi Min Mat Fac Was Fac Low Dat Pro Fac Ext Cet Fac Upp Machines Accessed 26 | . 5 1 . . 1 4 . 2 . 4 . 6 3 . . . Terminals 20 | . 5 1 . . 1 3 . 2 . . . 5 3 . . . Fabricators 1 | . . . . . . . . . . . . 1 . . . . Repair Stations . | . . . . . . . . . . . . . . . . . Recycling Units . | . . . . . . . . . . . . . . . . . Scanalyzers . | . . . . . . . . . . . . . . . . . Garrison Access 1 | . . . . . . 1 . . . . . . . . . . Total Hacks 98 | . 18 5 . . 2 10 . 4 . 13 . 31 15 . . . Successful 51 | . 8 1 . . 1 7 . 2 . 13 . 15 4 . . . Failed 46 | . 9 4 . . 1 3 . 2 . . . 16 11 . . . Catastrophic 12 | . 2 2 . . . 2 . . . . . 2 4 . . . Database Lockouts 1 | . 1 . . . . . . . . . . . . . . . Manual 70 | . 17 5 1 . 2 7 . 1 . . . 22 15 . . . Terminals 80 | . 18 5 . . 2 8 . 4 . . . 28 15 . . . Fabricators 3 | . . . . . . . . . . . . 3 . . . . Repair Stations . | . . . . . . . . . . . . . . . . . Recycling Units . | . . . . . . . . . . . . . . . . . Scanalyzers . | . . . . . . . . . . . . . . . . . Garrison Access 2 | . . . . . . 2 . . . . . . . . . . Terminal Hacks 36 | . 5 1 . . 1 2 . 1 . 13 . 11 2 . . . Record 5 | . . . . . . . . . . 5 . . . . . . Part Schematic 1 | . . . . . . . . . . 1 . . . . . . Robot Schematic 5 | . . . . . . . . . . 4 . 1 . . . . Robot Analysis 1 | . 1 . . . . . . . . . . . . . . . Prototype ID Bank 4 | . 1 . . . . . . . . 3 . . . . . . Open DSF 1 | . . . . . . . . . . . . 1 . . . . Level Access Points 1 | . . . . . 1 . . . . . . . . . . . Branch Access Points 3 | . 1 1 . . . . . . . . . 1 . . . . Fabricator Index 1 | . . . . . . . . . . . . . 1 . . . Alert Level 1 | . . . . . . . . . . . . 1 . . . . Maintenance Status 1 | . . . . . . 1 . . . . . . . . . . Surveillance Status 1 | . 1 . . . . . . . . . . . . . . . Patrol Status 1 | . . . . . . . . . . . . 1 . . . . Investigation Status 1 | . . . . . . . . . . . . 1 . . . . Assault Status 1 | . . . . . . . . . . . . 1 . . . . Recall Investigation 2 | . . . . . . 1 . . . . . 1 . . . . Hauler Manifests 3 | . 1 . . . . . . 1 . . . 1 . . . . Registered Components 1 | . . . . . . . . . . . . 1 . . . . Zone Layout 2 | . . . . . . . . . . . . 1 1 . . . Fabricator Hacks . | . . . . . . . . . . . . . . . . . Repair Station Hacks . | . . . . . . . . . . . . . . . . . Recycling Unit Hacks . | . . . . . . . . . . . . . . . . . Scanalyzer . | . . . . . . . . . . . . . . . . . Garrison Access Hacks . | . . . . . . . . . . . . . . . . . Unauthorized Hacks 15 | . 3 . . . . 5 . 1 . . . 4 2 . . . Terminals 15 | . 3 . . . . 5 . 1 . . . 4 2 . . . Assimilate 4 | . . . . . . 2 . . . . . 2 . . . . Botnet 9 | . 2 . . . . 2 . 1 . . . 2 2 . . . Operators 2 | . 1 . . . . 1 . . . . . . . . . . Fabricators . | . . . . . . . . . . . . . . . . . Repair Stations . | . . . . . . . . . . . . . . . . . Recycling Units . | . . . . . . . . . . . . . . . . . Scanalyzers . | . . . . . . . . . . . . . . . . . Garrison Access . | . . . . . . . . . . . . . . . . . Data Cores Recovered 2 | . 1 . . . . 1 . . . . . . . . . . Used 1 | . . . . . . 1 . . . . . . . . . . Hacking Detections 19 | . 5 1 . . 1 4 . 1 . . . 4 3 . . . Full Trace Events 10 | . 4 . . . . 2 . . . . . 2 2 . . . Feedback Events 4 | . . . . . . 2 . . . . . . 2 . . . Hackware Fried 4 | . . . . . . 2 . . . . . . 2 . . . Feedback Blocked 1 | . . . . . . . . . . . . . 1 . . . Robot Schematics Acquired 5 | . . . . . . . . . . 4 . 1 . . . . Robots Built . | . . . . . . . . . . . . . . . . . Authchips . | . . . . . . . . . . . . . . . . . Time . | . . . . . . . . . . . . . . . . . Total Robot Build Rating . | . . . . . . . . . . . . . . . . . Part Schematics Acquired 1 | . . . . . . . . . . 1 . . . . . . Parts Built . | . . . . . . . . . . . . . . . . . Authchips . | . . . . . . . . . . . . . . . . . Time . | . . . . . . . . . . . . . . . . . Total Part Build Rating . | . . . . . . . . . . . . . . . . . Parts Repaired . | . . . . . . . . . . . . . . . . . Time . | . . . . . . . . . . . . . . . . . Parts Recycled . | . . . . . . . . . . . . . . . . . Recycled Matter . | . . . . . . . . . . . . . . . . . Retrieved Matter . | . . . . . . . . . . . . . . . . . Retrieved Components . | . . . . . . . . . . . . . . . . . Parts Scanalyzed . | . . . . . . . . . . . . . . . . . Part Schematics Acquired . | . . . . . . . . . . . . . . . . . Parts Damaged . | . . . . . . . . . . . . . . . . . Bothacking | -11 -10 -10 -10 -9 -8 -7 -7 -7 -7 -7 -6 -6 -6 -6 -5 -5 ------------ Run | Yrd Mat Min Exi Min Mat Fac Was Fac Low Dat Pro Fac Ext Cet Fac Upp Used RIF Installer . | . . . . . . . . . . . . . . . . . Robots Hacked . | . . . . . . . . . . . . . . . . . Non-combat . | . . . . . . . . . . . . . . . . . Combat . | . . . . . . . . . . . . . . . . . Robot Hacks Applied . | . . . . . . . . . . . . . . . . . Relay Couplers Released . | . . . . . . . . . . . . . . . . . Fabnet Peak Effective % . | . . . . . . . . . . . . . . . . . Robots Rewired . | . . . . . . . . . . . . . . . . . Allies Hacked . | . . . . . . . . . . . . . . . . . Hacks Repelled . | . . . . . . . . . . . . . . . . . Allies | -11 -10 -10 -10 -9 -8 -7 -7 -7 -7 -7 -6 -6 -6 -6 -5 -5 -------- Run | Yrd Mat Min Exi Min Mat Fac Was Fac Low Dat Pro Fac Ext Cet Fac Upp Total Allies 8 | . . 1 . . . 1 1 . . . . . 5 . . . Largest Group 4 | . . 1 . . . 1 1 . . . . . 4 . . . Highest-Rated Group 90 | . . 31 . . . 10 31 . . . . . 90 . . . Highest-Rated Ally 31 | . . 31 . . . 10 31 . . . . . 25 . . . Total Orders . | . . . . . . . . . . . . . . . . . Ally Attacks 8 | . . . . . . . . . . . . . 8 . . . Total Damage 236 | . . . . . . . . . . . . . 236 . . . Kills 1 | . . . . . . . . . . . . . 1 . . . Allies Corrupted . | . . . . . . . . . . . . . . . . . Allies Melted . | . . . . . . . . . . . . . . . . . Intel | -11 -10 -10 -10 -9 -8 -7 -7 -7 -7 -7 -6 -6 -6 -6 -5 -5 ------- Run | Yrd Mat Min Exi Min Mat Fac Was Fac Low Dat Pro Fac Ext Cet Fac Upp Active Infowar (turns) 1431 | . . . . . 215 145 70 342 24 38 163 412 . . 22 . Optics 388 | . . . . . . . . . . . . 388 . . . . Sensors 17 | . . . . . . . . . . . . . . . 17 . Terrain 78 | . . . . . 78 . . . . . . . . . . . Machine Analysis 1194 | . . . . . . 145 70 342 24 38 163 412 . . . . ECM 142 | . . . . . 137 . . . . . . . . . 5 . Robot Analysis Total 1 | . 1 . . . . . . . . . . . . . . . Derelict Logs Recovered 4 | . . 2 . . . . . . . . 2 . . . . . Drone Launches 1 | . . . . . 1 . . . . . . . . . . . Drone Recoveries . | . . . . . . . . . . . . . . . . . Exploration | -11 -10 -10 -10 -9 -8 -7 -7 -7 -7 -7 -6 -6 -6 -6 -5 -5 ------------- Run | Yrd Mat Min Exi Min Mat Fac Was Fac Low Dat Pro Fac Ext Cet Fac Upp Turns Passed 6814 | 88 859 1530 468 223 745 814 70 342 24 38 163 638 264 39 283 226 Spaces Moved 8316 | 96 465 919 292 140 414 1186 129 845 69 119 503 1472 664 77 505 421 Core 949 | 4 1 . . . 55 2 . 1 . . . . 23 77 499 287 Treads 1976 | . 399 919 292 140 226 . . . . . . . . . . . Legs 39 | . . . . . 39 . . . . . . . . . . . Wheels 157 | 92 65 . . . . . . . . . . . . . . . Hover 1579 | . . . . . 94 1184 129 32 . . . . . . 6 134 Flight 3616 | . . . . . . . . 812 69 119 503 1472 641 . . . Fastest Speed 27 | 50 80 160 160 160 50 48 48 32 32 32 32 27 27 50 50 50 Average Speed 70 | 78 148 160 160 160 121 50 48 38 33 32 32 35 30 50 50 53 Slowest Speed 250 | 80 200 160 160 160 250 200 48 100 35 32 32 104 50 50 80 60 Overloaded Moves 4 | . . . . . . . . . . . . . 4 . . . Propulsion Burnouts 1 | . . . . . . . . . . . . . 1 . . . Robots Hopped 23 | . . . . . . . . 7 . . . 6 10 . . . Potential Cave-ins . | . . . . . . . . . . . . . . . . . Cave-ins Triggered . | . . . . . . . . . . . . . . . . . Exploration Rate (%) 45 | 5 62 94 61 45 26 26 74 15 12 75 80 35 80 23 18 45 Regions Visited 16 Branch Regions 9 Pre-discovered Areas 1 | . . . . . . . . . . 1 . . . . . . Known Exits Taken 9 | . 1 . . . 1 . . 1 1 1 1 1 1 1 . . Unknown Exits Taken 5 | 1 . 1 1 1 . . . . . . . . . . 1 . Scrap Searched 6 | . . 1 . . . . . . 1 . 2 . . . . 2 Spaces Dug 17 | . . . . . 3 . . . . . . 14 . . . . Terrain Destroyed 81 | . . . . . 43 24 . . . . . 14 . . . . Melee 14 | . . . . . . . . . . . . 14 . . . . Projectile 3 | . . . . . 3 . . . . . . . . . . . AOE 64 | . . . . . 40 24 . . . . . . . . . . Terrain Rammed . | . . . . . . . . . . . . . . . . . Walls Destroyed . | . . . . . . . . . . . . . . . . . Machines Disabled . | . . . . . . . . . . . . . . . . . Actions | -11 -10 -10 -10 -9 -8 -7 -7 -7 -7 -7 -6 -6 -6 -6 -5 -5 --------- Run | Yrd Mat Min Exi Min Mat Fac Was Fac Low Dat Pro Fac Ext Cet Fac Upp Total 8886 | 105 535 950 293 139 547 1345 138 852 69 118 503 1547 716 76 531 422 Wait 82 | . . 2 . . 31 43 . . . . . 2 4 . . . Move 8257 | 95 464 918 291 139 413 1186 128 832 68 118 502 1459 643 76 504 421 Hop 21 | . . . . . . . . 5 . . . 6 10 . . . Pick Up 29 | 4 5 5 1 . 5 4 2 1 . . . 2 . . . . Fast Attach 48 | 6 1 . . . 7 13 . 3 . . 1 10 . . 6 1 Attach 17 | . 1 1 . . 11 . . 1 1 . . . 2 . . . Detach 10 | . . . . . 3 1 . 1 . . . 3 . . 2 . Swap 28 | . 4 3 . . 3 13 . 1 . . . 4 . . . . Drop 35 | . 6 4 1 . . 8 2 8 . . . 6 . . . . Fire 156 | . 54 16 . . 70 16 . . . . . . . . . . Melee 30 | . . . . . . 11 . . . . . 19 . . . . Ram 4 | . . . . . . . . . . . . . . . 4 . Kick 3 | . . . . . 3 . . . . . . . . . . . Crush 1 | . . . . . 1 . . . . . . . . . . . Escape Stasis 158 | . . . . . . 50 . . . . . 36 57 . 15 . Rewire 7 | . . 1 . . . . 6 . . . . . . . . . Trap . | . . . . . . . . . . . . . . . . . Miscellaneous . | . . . . . . . . . . . . . . . . . Route ------- -11/Scrapyard -10/Materials (discovered 2 exits: [*Mat] / *Min) -10/Mines (discovered 3 exits: [*Mat x2] / *Exi) -10/Exiles -9/Mines -8/Materials (discovered 4 exits: *Fac x3 / [*Sto]) -7/Factory -7/Waste -7/Factory -7/Lower Caves -7/Data Miner -6/Proximity Caves -6/Factory (discovered 6 exits: *Fac x2 / *Low x2 / *Ext x2) -6/Extension (discovered 2 exits: *Fac / *Cet) -6/Cetus -5/Factory -5/Upper Caves History --------- Turn | Location | Event 20 | -11/Scrapyard | Discovered new exit (range 15) 89 | -11/Scrapyard | Entered Materials 90 | -10/Materials | Met a group of wandering Federalists 171 | -10/Materials | Lost 5 allies 324 | -10/Materials | Build established: Mutant 642 | -10/Materials | Discovered new exit (range 16) 791 | -10/Materials | Discovered new exit (range 7) 836 | -10/Materials | Identified exit to Mines 836 | -10/Materials | Central database locked down 948 | -10/Materials | Entered Mines 1059 | -10/Mines | Found a damaged Exp. Sensor Array with a note attached 1062 | -10/Mines | Found Prototype Device 1135 | -10/Mines | Learned Materials terminal intel 1195 | -10/Mines | Discovered new exit (range 5) 1446 | -10/Mines | Received a Mining Laser from a helpful Derelict 1798 | -10/Mines | Joined a pair of Derelicts in attacking an 0b10 outpost 1867 | -10/Mines | Learned Materials garrison access intel 1870 | -10/Mines | Received a Rocket Launcher from a helpful Derelict 2183 | -10/Mines | Discovered new exit (range 11) 2466 | -10/Mines | Deemed a non-threat by the Exiles lab entrance 2468 | -10/Mines | Discovered new exit (range 5) 2478 | -10/Mines | Entered Exiles 2538 | -10/Exiles | Met 8R-AWN 2578 | -10/Exiles | Met EX-HEX 2646 | -10/Exiles | Met EX-BIN 2674 | -10/Exiles | Aligned with FarCom system 2675 | -10/Exiles | Given EX-Vault access code 2726 | -10/Exiles | Opened EX-Vault 2738 | -10/Exiles | Found Prototype Device 2771 | -10/Exiles | Warned to stay clear of 0b10 Research branches 2793 | -10/Exiles | Exiles lab attacked by MAIN.C 2917 | -10/Exiles | Discovered new exit (range 12) 2946 | -10/Exiles | Left Exiles lab with Supersonic Drone Bay 2946 | -10/Exiles | Entered Mines 2968 | -9/Mines | Met a Derelict bent on vengeance 3119 | -9/Mines | Discovered new exit (range 10) 3169 | -9/Mines | Entered Materials 3169 | -8/Materials | Evolved 4 slots: Propulsion x1, Utility x3 3170 | -8/Materials | Loaded intel: 12 terminal locations 3171 | -8/Materials | Loaded intel: 1 garrison access location 3390 | -8/Materials | Discovered new exit (range 15) 3458 | -8/Materials | Identified Supersonic Drone Bay 3535 | -8/Materials | Discovered new exit (range 16) 3694 | -8/Materials | Lost 3 parts (2n1u) 3760 | -8/Materials | Lost 4 parts (2u2w) 3769 | -8/Materials | Core integrity fell below 50% 3819 | -8/Materials | Core integrity fell below 20% 3866 | -8/Materials | Lost 3 parts (1u2w) 3883 | -8/Materials | Build established: Hacker-Mutant 3883 | -8/Materials | Identified exit to Factory 3914 | -8/Materials | Entered Factory 3914 | -7/Factory | Evolved 2 slots: Propulsion x1, Utility x1 3958 | -7/Factory | Discovered new exit (range 6) 3980 | -7/Factory | Identified exit to Lower Caves 4041 | -7/Factory | Hacking Suite fried by hacking feedback 4041 | -7/Factory | Hacking Suite fried by hacking feedback 4436 | -7/Factory | Lost 3 parts (1n1u1w) 4689 | -7/Factory | Build established: Mutant 4728 | -7/Factory | Sucked down chute 4728 | -7/Factory | Entered Waste 4728 | -7/Waste | The area was eerily silent 4729 | -7/Waste | Met a frightened Derelict 4784 | -7/Waste | Discovered new exit (range 16) 4797 | -7/Waste | Identified exit to Factory 4798 | -7/Waste | A Compactor rumbled back to life 4798 | -7/Waste | Spotted C-40 Crusher 4798 | -7/Waste | Entered Factory 4889 | -7/Factory | Lost 4 parts (1n2u1w) 5133 | -7/Factory | Discovered exit to Lower Caves (range 8) 5140 | -7/Factory | Entered Lower Caves 5158 | -7/Lower Caves | A Derelict revealed a hidden shortcut to meet someone special 5160 | -7/Lower Caves | Identified exit to Data Miner 5164 | -7/Lower Caves | Entered Data Miner 5164 | -7/Data Miner | Discovered new exit (range 6) 5168 | -7/Data Miner | Identified exit to Proximity Caves 5172 | -7/Data Miner | Met Data Miner 5186 | -7/Data Miner | Learned location of Section 7 (-3) 5192 | -7/Data Miner | Received God Mode back door access code from Data Miner 5202 | -7/Data Miner | Entered Proximity Caves 5242 | -6/Proximity Caves | Unaware initiated a cargo recovery operation 5280 | -6/Proximity Caves | Spotter reported a threat 5283 | -6/Proximity Caves | Attracted the attention of an 0b10 outpost 5289 | -6/Proximity Caves | Learned 4 Factory zone layouts 5361 | -6/Proximity Caves | Discovered new exit (range 7) 5364 | -6/Proximity Caves | Identified exit to Factory 5365 | -6/Proximity Caves | Entered Factory 5365 | -6/Factory | Evolved 2 slots: Utility x2 5366 | -6/Factory | Identified exit to Lower Caves 5367 | -6/Factory | Identified exit to Factory 5391 | -6/Factory | Spotted B-75 Beast 5430 | -6/Factory | Identified exit to DSF 5583 | -6/Factory | Incoming investigation squad redirected 5614 | -6/Factory | Discovered exit to Factory (range 12) 5676 | -6/Factory | Identified exit to Extension 6003 | -6/Factory | Entered Extension 6046 | -6/Extension | Spotted B-75 Beast 6072 | -6/Extension | Build established: Hacker-Sprinter 6080 | -6/Extension | System Shield fried by hacking feedback 6103 | -6/Extension | Incoming investigation squad redirected 6105 | -6/Extension | Rescued a captive Derelict 6150 | -6/Extension | Spotted B-75 Beast 6185 | -6/Extension | Lost 5 parts (3n2u) 6189 | -6/Extension | Rescued a captive Derelict 6199 | -6/Extension | Rescued a captive Derelict 6207 | -6/Extension | Hacking Suite fried by hacking feedback 6211 | -6/Extension | Allied Derelicts emerged from ambush trap array 6221 | -6/Extension | Rescued a captive Derelict 6226 | -6/Extension | Incoming investigation squad redirected 6227 | -6/Extension | Rescued a captive Derelict 6262 | -6/Extension | Discovered exit to Factory (range 10) 6262 | -6/Extension | Discovered new exit (range 6) 6263 | -6/Extension | Lost 4 parts (1p2n1u) 6266 | -6/Extension | Identified exit to Cetus 6267 | -6/Extension | Entered Cetus 6274 | -6/Cetus | Spotted Cetus Guard 6275 | -6/Cetus | Spotted Cetus Guard 6276 | -6/Cetus | Spotted Cetus Guard 6276 | -6/Cetus | Spotted Cetus Guard 6288 | -6/Cetus | Discovered exit to Factory (range 16) 6306 | -6/Cetus | Entered Factory 6306 | -5/Factory | Evolved 2 slots: Propulsion x2 6348 | -5/Factory | Core integrity fell below 50% 6373 | -5/Factory | Lost 3 parts (3u) 6404 | -5/Factory | Spotted B-75 Beast 6406 | -5/Factory | Released all parts (2) 6412 | -5/Factory | Core integrity fell below 20% 6576 | -5/Factory | Discovered new exit (range 16) 6589 | -5/Factory | Entered Upper Caves 6625 | -5/Upper Caves | Build established: Mutant 6688 | -5/Upper Caves | Encountered a Warlord checkpoint 6789 | -5/Upper Caves | Released all parts (2) 6815 | -5/Upper Caves | Destroyed by S-27 Virus with Autogun Last Messages --------------- LOCATION=UNKNOWN GOAL=ESCAPE 06646_ Searching scrap... 06646_ Found Power Amplifier. 06646_ Found Imp. Arc Projector. 06646_ Found Com. Wheel. 06646_ Found Slug Cannon. 06646_ Found 47 Matter. 06647_ Acquired 47 matter. 06688_ GC-89J(M): "Estimated chance of a MAIN.C patrol making it through here: 0%. Unless they've got a Behemoth in tow, in which case it's probably closer to 100%." 06706_ Searching scrap... 06706_ Found Gravmag System. 06706_ Found 55 Matter. 06707_ Acquired 55 matter. 06708_ Acquired Gravmag System. 06753_ 3Y-5JV(k) breaks down the debris. 06789_ Released Adv. ECM Suite. 06789_ Released Gravmag System. Map ----- +----------------------------------------------------+ | ?????????????????????????????????????????????????? | | ?????????????????????????????????????????????????? | | ?????????????????????????????????????????????????? | | ?????????????????????????????????????????????????? | | ?????????????????????????????????????????????????? | | ?????????????????????????????????????????????????? | | ?????????????????????????????????????????????????? | | ?????????????????????????????????????????????????? | | ?????????????????????????????????????????????????? | | ?????????????????????????????????????????????????? | | ?????????????????????????????????????????????????? | | ?????????????????????????????????????????????????? | | ?????????????????#########???????############????? | | ?????????????????? #????### ###### | | ?????????????????? #??## | | ????????????????????# ### s | | ?????????????????????# ## #### | | ?????????????????????# ###### ##??# | | ?????????????????????# #????#####???# | | ?????????????????????# ##???????????# | | ?????????????????????# ##??????????# | | ?????????????????????## #??????????# | | ??????????????????????##### ##?????????# | | ???????????????????????# # #?????????# | | ???????????????????????## # #????????# | | ???????????????????????# @ # ## ?????# | | ???????????????????????# ## #? ????# | | ??????????????????????# ### ????# | | ??????????????????????# # ?? ???# | | ??????????????????????# #? ????# | | ?????????????????????? ? ?# ?????## | | ????????????????????? ###?##### ???????? | | ???????????????????? ? ?????????# ????????? | | ???????????????????? ? ??????????#?##??????????? | | ??????????????????? ? ????????????????????????? | | ?????????????????? ? ##????????????????????????? | | ??????????????????# ??#??????????????????????????? | | ??????????????????##?????????????????????????????? | | ?????????????????????????????????????????????????? | | ?????????????????????????????????????????????????? | | ?????????????????????????????????????????????????? | | ?????????????????????????????????????????????????? | | ?????????????????????????????????????????????????? | | ?????????????????????????????????????????????????? | | ?????????????????????????????????????????????????? | | ?????????????????????????????????????????????????? | | ?????????????????????????????????????????????????? | | ?????????????????????????????????????????????????? | | ?????????????????????????????????????????????????? | | ?????????????????????????????????????????????????? | +----------------------------------------------------+ Best States ------------- Heat Dissipation 40 Energy Generation 19 Energy Capacity 500 Matter Stores 300 Matter Capacity 300 Sight Range 22 Robot Scan Range 15 Terrain Scan Range 16 Terrain Scan Density 10 ECM Strength 1 Additional Mass Support 9 Armor Coverage 300 Utility Shielding 33 Phase Shifting 5 Evasion (%) 74 Launcher Accuracy 20 Recoil Reduction 2 Force Boost 20 Offensive Hacking 30 Defensive Hacking 20 Item Schematics ----------------- Cld. Cesium-ion Thruster | -7/Data Miner | Free Robot Schematics ------------------ I-36 Angel | -7/Data Miner | Free G-50 Soldier | -7/Data Miner | Free A-15 Conveyor | -7/Data Miner | Free C-17 Slicer | -7/Data Miner | Free L-41 Fighter | -6/Factory | Hacked Fabricated ------------ Nothing Repaired ---------- Nothing Alien Tech Used ----------------- None Achievements -------------- I'm Back, Baby! Part-time Excavator The Oracle Challenges ------------ None Game ------ Seed DamperArcBank Manual? 0 Play Time 01:05:38 Cumulative 17.8 hours Start 2025.10.06 @ 21:28:58 End 2025.10.06 @ 22:34:31 Sessions 1 Manual Loads 0 Difficulty Rogue Special Mode None Game No. 51 Rogue 44 Adventurer 7 Explorer 0 Win Type - Total 0 Types 0/0/0/0/0/0/0/0/0/0 Lore% 4 Gallery% 19 Achievement% 19 Wizard Run 0 Options --------- Layout 1 ASCII 0 Keyboard 1 Movement Vi Keybinds 0 Fullscreen 1 Font 24/Smallcaps Map View 76x35 Zoom Use 0% Tactical HUD 1 Map Filters NONE Filters NONE Steam 1 RUN: bcd0d3d2-8b30-4ebb-8b8c-3c80273cd802